Cogmind - Beta 16.1 @@@ ROGUE MODE // 2026.04.25 @ 18:13:06 Player: AngelSpirit Result: Destroyed by IX-BNL(R) with Subdweller Laser Performance ------------- Evolutions (0) 0 Regions Visited (2) 400 Robots Destroyed (25) 125 Value Destroyed (535) 535 Prototype IDs (15) 300 Alien Tech Used (0) 0 Bonus (0) 0 TOTAL SCORE: 1360 Bonus ------- None Cogmind --------- Core Integrity 0/250 Matter 183/300 Energy 99/100 System Corruption 0% Temperature Cool (6) Movement Rolling (107) Ox1 Location -10/Subcaves Parts ------- > --- POWER (1) -------- (None) > --- PROPULSION (2) --- Wheel Subdweller Monowheel > --- UTILITY (2) ------ High-capacity Storage Unit Makeshift Light Armor Plating > --- WEAPON (2) ------- Subdweller Machine Gun > --- INVENTORY (20) --- Light Ion Engine Light Ion Engine Wheel Wheel Wheel Wheel Wheel Wheel Wheel Compact Wheel Huge Storage Unit Sensor Array Seismic Detector Powered Cannon Mini Grenade Launcher Mini Grenade Launcher Mining Laser Peak State ------------ > --- POWER ------------ Subdweller Power Source > --- PROPULSION ------- Wheel Subdweller Monowheel > --- UTILITY ---------- High-capacity Storage Unit Makeshift Light Armor Plating > --- WEAPON ----------- Subdweller Laser Subdweller Machine Gun > --- INVENTORY -------- Light Ion Engine Light Ion Engine Wheel Wheel Wheel Wheel Wheel Wheel Compact Wheel Huge Storage Unit Sensor Array Seismic Detector Powered Cannon Assault Rifle Light Assault Rifle Mini Grenade Launcher Mini Grenade Launcher Mining Laser Shrapnel Trap [Rating: 17] Favorites ----------- Power Ion Engine Engine Ion Engine Propulsion Wheel Treads Light Treads Wheel Wheel Utility High-capacity Storage Unit Device Seismic Detector Storage High-capacity Storage Unit Protection Backup Plating III Weapon Assault Rifle Energy Gun Subdweller Laser Ballistic Gun Assault Rifle Launcher Mini Grenade Launcher Special Weapon Mining Laser Build | -11 -10 -10 ------- Run | Yrd Mat Sub Slots Evolved . | . . . Power . | . . . Propulsion . | . . . Utility . | . . . Weapon . | . . . Parts Attached 23 | 7 10 6 Power 3 | 1 1 1 Engine 3 | 1 1 1 Core . | . . . Reactor . | . . . Propulsion 6 | 2 3 1 Treads 2 | . 2 . Leg . | . . . Wheel 4 | 2 1 1 Hover . | . . . Flight . | . . . Utility 6 | 2 2 2 Device 2 | 1 . 1 Storage 2 | 1 1 . Processor . | . . . Hackware . | . . . Protection 2 | . 1 1 Artifact . | . . . Weapon 8 | 2 4 2 Energy Gun 1 | . . 1 Energy Cannon . | . . . Ballistic Gun 5 | 2 2 1 Ballistic Cannon . | . . . Launcher 1 | . 1 . Special Weapon 1 | . 1 . Impact Weapon . | . . . Slashing Weapon . | . . . Piercing Weapon . | . . . Special Melee Weapon . | . . . Unidentified Prototypes . | . . . Parts Lost 4 | . . 4 Power 1 | . . 1 Propulsion . | . . . Utility . | . . . Weapon 3 | . . 3 Highest Loss Streak 3 | . . 3 To Critical Strikes . | . . . Average Backups 9 | 1 7 16 Power . | . . 1 Propulsion 4 | 1 3 7 Utility 1 | . 1 3 Weapon 2 | . 1 5 Tool/Special . | . . . Unused Backups 10 | . . 10 Power 1 | . . 1 Propulsion 6 | . . 6 Utility 1 | . . 1 Weapon 2 | . . 2 Tool/Special . | . . . Average Slot Usage (%) 99 | . 100 98 Engine 13 | . 14 13 Treads 5 | . 6 . Wheel 22 | . 21 28 Device 10 | . 10 8 Storage 14 | . 14 14 Protection 4 | . 3 5 Ballistic Gun 27 | . 27 26 Peak Build Rating 17 | 7 9 17 Average Rating 8 | 4 8 12 On Entrance 5 | . 7 9 Avg Prop Armor Cover (%) . | . . . Naked Turns . | . . . Heaviest Build 57 | 14 50 57 Greatest Support 40 | 26 40 30 Greatest Overweight (x) 2 | . 1 2 Average Overweight (x) . | . . 1 Largest Inventory Capacity 20 | 8 20 20 Average Capacity 14 | 7 13 20 Most Carried 20 | 3 15 20 Average Carried 9 | 1 7 17 Final Capacity 20 | 8 20 20 Final Carried 18 | 3 15 18 Class Distribution -------------------- 85% | Mutant 14% | Scavenger-Mutant Dominant Class ---------------- Mutant | -10/Materials Mutant | -10/Subcaves Resources | -11 -10 -10 ----------- Run | Yrd Mat Sub Matter Collected 930 | 250 590 90 Remotely . | . . . Salvage Created 592 | 62 470 60 Parts 44 | 9 30 5 Haulers Intercepted . | . . . Recyclers Shooed . | . . . Parts Field Recycled . | . . . Retrieved Matter . | . . . Parts Self-Destructed . | . . . Prevented . | . . . Parts Restored . | . . . Kills | -11 -10 -10 ------- Run | Yrd Mat Sub Combat Hostiles Destroyed 21 | . 19 2 Guns 13 | . 11 2 AOE 8 | . 8 . Classes Destroyed 5 | 1 3 1 Tunneler 3 | 3 . . Operator 1 | . 1 . Swarmer 11 | . 11 . Grunt 8 | . 8 . Subdweller 2 | . . 2 Best Kill Streak 4 | 3 4 1 Combat Bots Only 4 | . 4 1 Max Kills in Single Turn 3 | 1 3 1 Gunslinging . | . . . Exploded 3 | . 3 . Melee . | . . . Uniques/NPCs Destroyed . | . . . Combat | -11 -10 -10 -------- Run | Yrd Mat Sub Hostile Shots Fired 93 | . 63 30 Missed 23 | . 18 5 Hits 70 | . 45 25 Projectile 70 | . 45 25 Critical Strikes 3 | . 1 2 Damage Taken 1091 | . 594 497 Core 267 | . 141 126 Absorbed by Shields . | . . . Core Remaining (%) 100 | 100 . . Volleys Fired 83 | 4 53 26 Largest 2 | 2 2 2 Hottest 100 | 40 100 90 Shots Fired 154 | 8 99 47 Gun 147 | 8 92 47 Cannon . | . . . Launcher 6 | . 6 . Special 1 | . 1 . Kinetic 142 | 8 92 42 Thermal 6 | . 1 5 Explosive 6 | . 6 . Electromagnetic . | . . . Robot Hit Streak 11 | 2 11 9 Robot Miss Streak 4 | 2 3 4 Penetration Max . | . . . Secondary Targets 1 | . 1 . Max Gunslinging Chain 1 | . 1 . Shots Hit Robots 98 | 3 60 35 Core Hits 43 | 3 34 6 Critical Kills . | . . . Critical Parts Destroyed 1 | . . 1 Critical Strikes 1 | . . 1 Destroy 1 | . . 1 Melee Attacks . | . . . Impact . | . . . Slashing . | . . . Piercing . | . . . Sneak Attacks . | . . . Combat Hostiles . | . . . Follow-up Attacks . | . . . Damage Inflicted 1607 | 52 970 585 Guns 1251 | 52 614 585 Cannons . | . . . Explosions 356 | . 356 . Melee . | . . . Ramming . | . . . Kinetic 1189 | 52 614 523 Thermal 62 | . . 62 Explosive 356 | . 356 . Electromagnetic . | . . . Impact . | . . . Slashing . | . . . Piercing . | . . . Highest Corruption . | . . . Average Corruption . | . . . Corruption Purged . | . . . Corruption Blocked . | . . . Overload Shots . | . . . Overflow Damage . | . . . Projectiles . | . . . Explosions . | . . . Melee . | . . . Knockbacks . | . . . Impact . | . . . Kinetic . | . . . Secondary . | . . . Self-Inflicted Damage 70 | . 70 . Shots 2 | . 2 . Rammed . | . . . Targets Rammed . | . . . Kicked . | . . . Crushed . | . . . Highest Temperature 23 | . 23 . Average Temperature 6 | . 6 . Received Heat Transfer 339 | . 231 108 Siege Activations . | . . . Martial Activations . | . . . Shielding Activations . | . . . Robots Disrupted . | . . . Combat Hostiles . | . . . Robots Corrupted . | . . . Combat Hostiles . | . . . Parts Fried . | . . . Impact Corruptions . | . . . Robots Melted . | . . . Combat Hostiles . | . . . Parts Melted . | . . . Heat Transferred 75 | . . 75 Parts Sabotaged . | . . . Parts Stolen . | . . . Parts Stripped . | . . . Power Chain Reactions . | . . . Alert | -11 -10 -10 ------- Run | Yrd Mat Sub Maximum Alert Level 1 | . 1 . Low Security (%) 65 | 100 63 . Level 1 34 | . 36 . Level 2 . | . . . Level 3 . | . . . Level 4 . | . . . Level 5 . | . . . High Security . | . . . Max Security . | . . . Peak Influence 323 | 10 323 . Initial . | . . . Average 149 | . 158 . Influence Increases 679 | 15 664 . Destroy 0b10 Robot/C 380 | . 380 . Destroy 0b10 Robot/NC 20 | 15 5 . Destroy Leader 80 | . 80 . Successful Hack 33 | . 33 . Select Force Hacks 60 | . 60 . Disable Machine 15 | . 15 . Destroy Structure 46 | . 46 . Lose Combat Pursuer 45 | . 45 . Influence Decreases 679 | 15 420 244 Entered New Map 118 | . . 118 Time Decay 551 | 15 420 116 Lost Part 10 | . . 10 Squads Dispatched 5 | . 5 . Investigation 4 | . 4 . Extermination . | . . . Reinforcement 1 | . 1 . Assault . | . . . Garrison . | . . . Intercept . | . . . Searches Triggered . | . . . Construction Impeded . | . . . Haulers Reinforced . | . . . Active Scanning Responses . | . . . Cargo Convoy Interrupts . | . . . Stealth | -11 -10 -10 --------- Run | Yrd Mat Sub Distress Signals 2 | . 2 . Communications Jammed . | . . . Distress Signals . | . . . Times Spotted 30 | . 26 4 Peak Tracking Total 5 | . 5 3 Tactical Retreats 2 | . 2 . Traps | -11 -10 -10 ------- Run | Yrd Mat Sub Traps Triggered 1 | . 1 . Indirectly . | . . . Trap Hack Attempts . | . . . Triggered . | . . . Disarmed . | . . . Reprogrammed . | . . . Reused 1 | . . 1 Traps Extracted . | . . . Installed 1 | . . 1 Triggered . | . . . Most Traps Carried 1 | . . 1 Machines | -11 -10 -10 ---------- Run | Yrd Mat Sub Machines Disabled 2 | . 1 1 Max in Single Turn 1 | . 1 1 Machines Repaired . | . . . Machines Dismantled . | . . . Machines Sabotaged . | . . . Overloaded Fab Kills . | . . . Hacking | -11 -10 -10 --------- Run | Yrd Mat Sub Machines Accessed 10 | . 9 1 Terminals 6 | . 6 . Fabricators . | . . . Repair Stations 1 | . 1 . Recycling Units 2 | . 2 . Scanalyzers . | . . . Garrison Access . | . . . Total Hacks 36 | . 35 1 Successful 20 | . 19 1 Failed 15 | . 15 . Catastrophic 2 | . 2 . Database Lockouts 1 | . 1 . Manual 28 | . 28 . Terminals 24 | . 24 . Fabricators . | . . . Repair Stations 3 | . 3 . Recycling Units 8 | . 8 . Scanalyzers . | . . . Garrison Access . | . . . Terminal Hacks 6 | . 5 1 Robot Analysis 1 | . 1 . Prototype ID Bank 1 | . 1 . Terminal Index 1 | . 1 . Locate Traps 2 | . 2 . Proto ID Catalog 1 | . . 1 Fabricator Hacks . | . . . Repair Station Hacks 1 | . 1 . Refit 1 | . 1 . Recycling Unit Hacks 1 | . 1 . Retrieve Components 1 | . 1 . Scanalyzer . | . . . Garrison Access Hacks . | . . . Unauthorized Hacks 12 | . 12 . Terminals 10 | . 10 . Botnet 3 | . 3 . Operators 1 | . 1 . Skim 6 | . 6 . Fabricators . | . . . Repair Stations . | . . . Recycling Units 2 | . 2 . Tunnel 2 | . 2 . Scanalyzers . | . . . Garrison Access . | . . . Data Cores Recovered . | . . . Used . | . . . Hacking Detections 9 | . 9 . Full Trace Events 1 | . 1 . Feedback Events . | . . . Feedback Blocked . | . . . Robot Schematics Acquired . | . . . Robots Built . | . . . Authchips . | . . . Time . | . . . Total Robot Build Rating . | . . . Part Schematics Acquired . | . . . Parts Built . | . . . Authchips . | . . . Time . | . . . Total Part Build Rating . | . . . Part Studies Acquired . | . . . Parts Repaired . | . . . Time . | . . . Parts Recycled . | . . . Recycled Matter . | . . . Retrieved Matter . | . . . Retrieved Components 10 | . 10 . Parts Scanalyzed . | . . . Part Schematics Acquired . | . . . Parts Damaged . | . . . Bothacking | -11 -10 -10 ------------ Run | Yrd Mat Sub Used RIF Installer . | . . . Robots Hacked . | . . . Non-combat . | . . . Combat . | . . . Robot Hacks Applied . | . . . Relay Couplers Released . | . . . Fabnet Peak Effective % . | . . . Robots Rewired . | . . . Allies Hacked . | . . . Hacks Repelled . | . . . Allies | -11 -10 -10 -------- Run | Yrd Mat Sub Total Allies . | . . . Largest Group . | . . . Highest-Rated Group . | . . . Highest-Rated Ally . | . . . Total Orders . | . . . Ally Attacks . | . . . Total Damage . | . . . Kills . | . . . Allies Corrupted . | . . . Allies Melted . | . . . Intel | -11 -10 -10 ------- Run | Yrd Mat Sub Active Infowar (turns) 1184 | 5 938 241 Sensors 241 | . . 241 Seismic 943 | 5 938 . Robot Analysis Total 1 | . 1 . Derelict Logs Recovered . | . . . Drone Launches . | . . . Drone Recoveries . | . . . Exploration | -11 -10 -10 ------------- Run | Yrd Mat Sub Turns Passed 1732 | 71 1286 375 Spaces Moved 1076 | 52 778 246 Core 2 | 2 . . Treads 111 | . 111 . Legs . | . . . Wheels 963 | 50 667 246 Hover . | . . . Flight . | . . . Fastest Speed 50 | 50 90 105 Average Speed 108 | 89 109 107 Slowest Speed 160 | 100 160 120 Overloaded Moves . | . . . Propulsion Burnouts . | . . . Robots Hopped . | . . . Potential Cave-ins . | . . . Cave-ins Triggered . | . . . Exploration Rate (%) 35 | 3 84 18 Regions Visited 2 Branch Regions 1 Pre-discovered Areas 4 | . 3 1 Known Exits Taken . | . . . Unknown Exits Taken 2 | 1 1 . Scrap Searched 2 | . . 2 Spaces Dug . | . . . Terrain Destroyed 56 | . 56 . Melee . | . . . Projectile . | . . . AOE 56 | . 56 . Terrain Rammed . | . . . Walls Destroyed . | . . . Machines Disabled . | . . . Actions | -11 -10 -10 --------- Run | Yrd Mat Sub Total 1482 | 65 1108 309 Wait 238 | . 227 11 Move 1074 | 51 777 246 Hop . | . . . Pick Up 22 | 3 12 7 Fast Attach 9 | 7 1 1 Attach 4 | . 1 3 Detach 3 | . 2 1 Swap 39 | . 30 9 Drop 9 | . 5 4 Fire 83 | 4 53 26 Melee . | . . . Ram . | . . . Kick . | . . . Crush . | . . . Escape Stasis . | . . . Rewire . | . . . Trap 1 | . . 1 Miscellaneous . | . . . Route ------- -11/Scrapyard -10/Materials (discovered 5 exits: *Mat x2 / [*Min x2] / *Sub) -10/Subcaves History --------- Turn | Location | Event 27 | -11/Scrapyard | Discovered new exit (range 16) 72 | -11/Scrapyard | Entered Materials 331 | -10/Materials | Build established: Mutant 354 | -10/Materials | Discovered new exit (range 12) 450 | -10/Materials | Discovered new exit (range 11) 572 | -10/Materials | Derelicts attacked the area 574 | -10/Materials | Discovered new exit (range 15) 888 | -10/Materials | Discovered new exit (range 15) 916 | -10/Materials | Core integrity fell below 50% 940 | -10/Materials | Central database locked down 1072 | -10/Materials | Discovered new exit (range 8) 1110 | -10/Materials | Loaded intel: 11 trap records 1152 | -10/Materials | Learned 2 Mines zone layouts 1185 | -10/Materials | Learned location of 1 exit from Storage 1226 | -10/Materials | Learned location of 1 exit from Storage 1265 | -10/Materials | Identified exit to Materials 1298 | -10/Materials | Learned location of Mines (-10) 1358 | -10/Materials | Entered Subcaves 1385 | -10/Subcaves | Learned location of Zion (-6) 1385 | -10/Subcaves | Met a Zionite searching for "candidates" 1453 | -10/Subcaves | Visited 4L-MR0's lab 1468 | -10/Subcaves | Found Powered Cannon 1712 | -10/Subcaves | Core integrity fell below 20% 1733 | -10/Subcaves | Destroyed by IX-BNL(R) with Subdweller Laser Last Messages --------------- 01619_ F3-KD7(u) tweaks Twisted Machinery. 01626_ Acquired 36 matter. 01627_ Subatomizers dissect the Sub. Power Source. 01629_ Acquired Sub. Laser. 01633_ F3-KD7(u) tweaks Twisted Machinery. 01641_ Acquired Sub. Power Source. 01643_ Dropped Wheel. 01643_ Acquired Sub. Monowheel. 01654_ Sub. Laser shoots sparks and powers down. 01657_ Dropped Broken Sub. Laser. 01661_ Acquired Wheel. 01666_ Subatomizers dissect the Sub. Optics. 01688_ Dropped Shrapnel Trap. 01689_ Installed Shrapnel Trap. 01711_ Assault Rifle destroyed. 01719_ Sub. Power Source destroyed. 01720_ 5Y-S7J(R) destroyed. 01727_ Lgt. Assault Rifle destroyed. 01729_ Critical hit (Destroy). Map ----- +----------------------------------------------------+ | ##????????????????????????????????????????????? | | # ##???????????????????????????????????????????? | | # #???????????#####??????##???????????????????? | | # ##??????????## ####?##"##??????????????????? | | ############# "###"" ###????????????????? | | ## ## # "" """ ####?????????????? | | "![ "" #?????????????? | | "" #??????????????? | | # # ## ""##??????????????? | | ############## ## "#???????????????? | | ##????????????## ## #???????????????? | | ###??????????????## ## #???????????????? | | ??????????????????#### #???????????????? | | ?????????????????????# " ##???????????????? | | ????????????????????# ## "##???????????????? | | ??????????????????# #?### "##??????????????? | | ?????????????????# "????# # #??????????????? | | ?????????????????# ""????# ####??????????????? | | ?????????????????## ""?????# ##?????????????????? | | ??????????????????##??????## #?????????????????? | | ?????????????????????????## ##?????????????????? | | ??????????????????## ????# ##????????????????? | | ??????????????????# ??## ##???????????????? | | ???????????????????# ## R ##??????????????? | | ????????????????????# % #??????????????? | | ????????????????????# " @#####^ #??????????????? | | ????????????????????# " ##???## ##?????????????? | | ????????????????????## " ?????# #?????????????? | | ?????????????????????#u ??????# ##?????????????? | | ???????????????????? "??????# #?????????????? | | ???????????????????" ""???????# ##?????????????? | | ??????????????????## ""??????? #??????????????? | | ???????????????????# ???????? ##??????????????? | | ???????????????????# ???????? #???????????????? | | ????????????????????????????? ???????????????? | | ???????????????????????????? ???????????????? | | ???????????????????????????? ???????????????? | | ??????????????????????????? ## ???????????????? | | ??????????????????????????? #??# ???????????????? | | ?????????????????????????? ????#???????????????? | | ?????????????????????????? ????????????????????? | | ?????????????????????????????????????????????????? | | ?????????????????????????????????????????????????? | | ?????????????????????????????????????????????????? | | ?????????????????????????????????????????????????? | | ?????????????????????????????????????????????????? | | ?????????????????????????????????????????????????? | | ?????????????????????????????????????????????????? | | ?????????????????????????????????????????????????? | | ?????????????????????????????????????????????????? | +----------------------------------------------------+ Best States ------------- Heat Dissipation 25 Energy Generation 15 Energy Capacity 250 Matter Stores 300 Matter Capacity 300 Sight Range 16 Robot Scan Range 14 Terrain Scan Density 10 Armor Coverage 100 Evasion (%) 42 Recoil Reduction 2 Item Schematics ----------------- None Robot Schematics ------------------ None Fabricated ------------ Nothing Repaired ---------- Nothing Studied --------- None Alien Tech Used ----------------- None Achievements -------------- None Challenges ------------ None Game ------ Seed HellfirePiercingFrame Manual? 0 Play Time 00:13:18 Cumulative 743.7 hours Start 2026.04.25 @ 18:02:31 End 2026.04.25 @ 18:13:06 Sessions 1 Manual Loads 0 Difficulty Rogue Special Mode None Game No. 219 Rogue 219 Adventurer 0 Explorer 0 Win Type - Total 28 Types 10/3/7/1/1/0/2/1/1/2 Lore% 95 Gallery% 87 Achievement% 81 Wizard Run 0 Options --------- Layout 1 ASCII 0 Keyboard 0 Movement Mouse Keybinds 0 Fullscreen 2 Font 32/SmallcapsGlow Map View 50x35 Zoom Use 0% Tactical HUD 1 Map Filters NONE Filters NONE Steam 1 RUN: d58bec0e-98f0-4c90-9240-d10bc48ad251